bitfinex/quotes_ETHUSD_20251117
["timestamp","ask_amount","ask_price","bid_price","bid_amount"]
[1763349158874,0.6749,3169.9,3169.7,0.84183271]
[1763349159075,0.4831,3169.8,3169.7,0.84183271]
[1763349159383,0.4787,3170.3,3169.7,0.84183271]
[1763349160441,0.002,3170.9,3170.2,0.1469]
[1763349160740,0.002,3170.9,3169.5,1.12244361]
[1763349160741,0.4807,3170.9,3170.0,0.84183271]
[1763349162886,0.002,3170.9,3170.0,0.84183271]
[1763349163086,0.002,3170.9,3170.2,0.84183271]
[1763349163376,0.002,3170.9,3169.8,1.83056542]
[1763349163377,0.4807,3170.9,3170.1,0.84183271]
[1763349163752,0.002,3170.9,3170.2,0.84183271]
[1763349163957,0.4807,3170.9,3170.2,0.84183271]
[1763349164158,0.4807,3170.9,3170.3,0.84183271]
[1763349164159,0.002,3170.9,3170.3,0.84183271]
[1763349164859,0.002,3170.9,3170.4,0.84183271]
[1763349167281,0.4807,3170.9,3170.4,0.84183271]
[1763349167487,0.4807,3170.9,3170.3,0.84183271]
[1763349169884,0.4831,3170.4,3170.3,0.84183271]
[1763349170088,0.4807,3170.9,3170.3,0.84183271]
[1763349170700,0.4831,3170.4,3170.3,0.84183271]
[1763349170902,0.4831,3170.4,3169.9,1.68366542]
[1763349170903,0.4831,3170.4,3170.2,0.84183271]
[1763349171080,0.4787,3170.8,3170.1,0.84183271]
[1763349172309,0.002,3170.9,3170.2,0.84183271]
[1763349172482,0.002,3170.9,3170.1,0.84183271]
[1763349173013,0.4622,3170.9,3170.1,0.84183271]
[1763349174085,0.002,3170.9,3170.1,0.84183271]
[1763349174417,0.4622,3170.9,3170.1,0.84183271]
[1763349175019,0.002,3170.9,3170.1,0.84183271]
[1763349175208,0.4602,3170.8,3170.1,0.84183271]
[1763349175588,0.4521,3170.2,3170.0,0.84183271]
[1763349175895,0.49528132,3170.7,3169.9,0.84183271]
[1763349176096,0.49528132,3170.7,3169.8,0.84183271]
[1763349176097,0.4602,3170.6,3169.8,0.84183271]
[1763349176294,0.4602,3170.6,3169.6,0.84183271]
[1763349176295,0.4521,3169.8,3169.6,0.84183271]
[1763349176497,0.4602,3170.6,3169.5,0.84183271]
[1763349176714,0.4521,3169.7,3169.5,0.84183271]
[1763349177219,0.4521,3169.7,3169.5,4.72183271]
[1763349177460,0.4521,3169.6,3169.4,0.84183271]
[1763349177721,0.4521,3169.6,3169.3,0.84183271]
[1763349178037,0.1886,3169.9,3169.4,0.84183271]
[1763349178689,0.6488,3169.9,3169.4,0.84183271]
[1763349180026,0.1886,3169.9,3169.4,0.84183271]
[1763349180226,0.4602,3169.8,3169.4,0.84183271]
[1763349180422,0.4602,3169.8,3169.1,5.00244361]
[1763349180423,0.4521,3169.5,3169.3,0.84183271]
[1763349180937,0.49528132,3170.7,3169.1,5.00244361]
[1763349180938,0.49528132,3170.7,3169.7,0.05]
[1763349181091,1.69150975,3172.4,3169.5,1.5392448]
[1763349181092,0.1886,3172.8,3171.7,0.405504]
[1763349181316,0.4602,3172.7,3171.7,0.84300649]
[1763349181542,0.6407,3171.8,3171.3,0.84300649]
[1763349181739,0.6407,3171.8,3171.4,0.84300649]
[1763349181740,1.1009,3171.8,3171.4,0.84300649]
[1763349181946,1.1009,3171.8,3171.3,0.84300649]
[1763349181947,0.6407,3171.8,3171.3,0.84300649]
[1763349182358,0.1886,3171.9,3171.2,0.84300649]
[1763349182858,0.4602,3171.8,3170.9,0.84300649]
[1763349183655,0.4602,3171.8,3170.6,1.12400865]
[1763349183656,0.4602,3171.8,3170.8,0.84300649]
[1763349183952,0.4602,3171.8,3170.6,0.84300649]
[1763349184258,0.4602,3171.8,3170.4,0.86720649]
[1763349184259,0.6407,3170.7,3170.4,0.86720649]
[1763349184419,0.6407,3170.7,3170.4,0.0242]
[1763349184750,1.59609676,3170.7,3170.4,0.0242]
[1763349184963,0.4602,3170.6,3170.4,0.0242]
[1763349185151,0.4521,3170.5,3170.4,0.0242]
[1763349185629,0.9123,3170.5,3170.4,0.0242]
[1763349187154,0.9123,3170.5,3169.2,0.84300649]
[1763349187335,0.4602,3170.4,3169.2,0.84300649]
[1763349189233,0.002,3170.6,3169.3,0.84300649]
[1763349189465,0.4602,3170.5,3169.3,0.84300649]
[1763349191072,0.002,3170.6,3169.3,0.84300649]
[1763349191371,0.002,3170.6,3169.4,0.84300649]
[1763349191372,0.4602,3170.5,3169.4,0.84300649]
[1763349192034,0.002,3170.6,3169.4,0.84300649]
[1763349192234,0.002,3170.6,3169.5,0.84300649]
[1763349192505,0.4602,3170.5,3169.5,0.84228361]
[1763349193086,0.4602,3170.5,3169.2,1.12400865]
[1763349193087,0.4602,3170.5,3169.4,0.84228361]
[1763349193674,0.4602,3170.5,3169.3,0.84228361]
[1763349194237,0.4602,3170.5,3169.2,0.84228361]
[1763349194478,0.4602,3170.5,3169.1,0.84228361]
[1763349196302,0.4602,3170.5,3169.2,3.88]
[1763349196484,0.6488,3170.4,3169.2,3.88]
[1763349196885,0.4687,3170.3,3169.2,3.88]
[1763349198271,0.4687,3170.3,3169.0,0.84228361]
[1763349198892,0.49535189,3170.0,3169.0,0.84228361]
[1763349199263,0.6603,3169.9,3168.9,0.84228361]
[1763349199665,0.4687,3169.8,3168.9,0.84228361]
[1763349199863,0.4687,3169.8,3168.7,3.88]
[1763349201170,0.6603,3169.9,3168.7,4.72228361]
[1763349201792,0.6453,3169.9,3168.7,4.72228361]
[1763349201990,0.6453,3169.9,3168.8,0.84228361]
[1763349202393,0.49535845,3169.7,3168.8,0.84228361]
[1763349202593,0.49535845,3169.7,3168.7,4.72228361]
[1763349202906,0.002,3170.6,3169.2,0.84228361]
[1763349203112,0.49529541,3170.5,3169.5,0.84228361]
[1763349203310,0.49529541,3170.5,3170.0,1.24778761]
[1763349203480,0.002,3170.6,3170.3,0.84228361]
[1763349203671,0.002,3170.6,3170.2,0.84228361]
[1763349203889,0.002,3170.6,3170.0,0.84228361]
[1763349204308,0.002,3170.6,3170.1,0.84228361]
[1763349205522,0.002,3170.6,3169.9,0.84228361]
[1763349205722,0.002,3170.6,3169.8,0.84228361]
[1763349206525,0.4557,3170.6,3169.7,0.84228361]
[1763349206927,0.002,3170.6,3169.7,0.84228361]
[1763349207423,0.002,3170.6,3169.8,0.84228361]
[1763349209128,0.002,3170.6,3169.7,0.84228361]
[1763349209300,0.002,3170.6,3169.8,0.84228361]
[1763349209834,0.0009,3170.6,3170.5,7.03673134]
[1763349210202,0.0009,3170.6,3170.5,7.22533134]
[1763349211106,0.1886,3172.8,3170.9,0.405504]
[1763349211351,0.1886,3172.8,3171.4,1.24413762]
[1763349211660,0.1886,3172.8,3171.6,0.83863362]
[1763349211863,0.4537,3172.7,3171.6,0.83863362]
[1763349212434,0.1886,3172.8,3171.6,0.83863362]
[1763349212763,0.1841,3172.7,3171.7,0.1667]
[1763349214538,0.4537,3172.6,3171.7,0.1667]
[1763349214943,0.4537,3172.6,3171.5,0.1667]
[1763349216135,0.4537,3172.6,3171.5,0.6275]
[1763349216336,0.4537,3172.6,3171.5,0.1667]
[1763349217082,0.1841,3172.7,3171.6,0.4608]
[1763349217238,0.4537,3172.6,3171.5,0.1667]
[1763349219082,0.4537,3172.6,3171.4,0.4608]
[1763349219271,0.4537,3172.6,3171.2,0.1667]
[1763349219666,0.4537,3172.6,3171.2,0.6275]
[1763349220182,0.4537,3172.6,3171.3,0.4608]
[1763349222397,0.49502304,3172.3,3171.3,0.4608]
[1763349222890,0.4537,3172.4,3171.3,0.4608]
[1763349224199,0.1841,3172.7,3171.3,0.4608]
[1763349224350,0.4537,3172.6,3171.3,0.4608]
[1763349225183,0.1841,3172.7,3171.3,0.4608]
[1763349225345,0.6378,3172.7,3171.3,0.4608]
[1763349225862,0.49501366,3172.4,3171.3,0.4618]
[1763349226806,0.94871366,3172.4,3171.3,0.4618]
[1763349227184,0.94871366,3172.4,3171.4,3.88]
[1763349227590,0.49501366,3172.4,3171.5,0.4608]
[1763349228392,0.4537,3172.5,3171.5,0.4608]
[1763349230951,0.4537,3172.5,3171.4,3.88]
[1763349231557,0.49501141,3172.3,3171.4,3.88]
[1763349231766,0.49501141,3172.3,3171.5,3.88]
[1763349231996,0.4998,3172.2,3171.5,3.88]
[1763349232190,0.4998,3172.2,3171.3,0.001]
[1763349232191,0.49501141,3172.3,3171.6,3.88]
[1763349232494,0.99481141,3172.3,3171.6,3.88]
[1763349232868,0.4998,3172.2,3171.6,3.88]
[1763349235595,0.4839,3171.7,3171.6,3.88]
[1763349235763,0.4839,3171.7,3171.3,0.001]
[1763349236163,0.99481141,3172.3,3171.6,0.4522]
[1763349236394,0.99481141,3172.3,3171.3,1.30563362]
[1763349236594,0.4998,3172.2,3171.3,0.83963362]
[1763349237681,0.49501141,3172.3,3171.3,0.83963362]
[1763349237866,0.99481141,3172.3,3171.3,1.30563362]
[1763349238269,0.99481141,3172.3,3171.5,0.83863362]
[1763349238569,0.99481141,3172.3,3171.6,0.83863362]
[1763349239196,0.49501141,3172.3,3172.0,0.83863362]
[1763349239591,0.49501141,3172.3,3171.5,2.14326725]
[1763349239592,0.49501141,3172.3,3171.9,0.83863362]
[1763349239902,0.49501141,3172.3,3172.0,0.83863362]
[1763349240100,0.49501141,3172.3,3171.9,0.83863362]
[1763349240304,0.4839,3172.1,3171.9,0.83863362]
[1763349240605,0.4998,3172.2,3171.9,0.83863362]
[1763349240606,0.2011,3172.0,3171.9,0.83863362]
[1763349241622,0.9837,3172.0,3171.9,0.83863362]
[1763349241927,0.9837,3172.0,3171.7,0.83863362]
[1763349242088,0.4998,3172.4,3171.7,0.83863362]
[1763349242282,0.4998,3172.4,3171.8,0.83863362]
[1763349242509,0.4998,3172.4,3171.7,0.83863362]
[1763349242890,0.4839,3171.8,3171.7,0.83863362]
[1763349243724,0.4839,3171.8,3171.5,0.83863362]
[1763349243725,0.9837,3171.8,3171.5,0.83863362]
[1763349244032,1.1337408,3172.6,3171.4,0.83863362]
[1763349244323,0.4998,3172.3,3171.6,0.83863362]
[1763349244725,0.4839,3171.7,3171.6,0.83863362]
[1763349245319,0.67854128,3171.8,3171.6,0.83863362]
[1763349245518,0.4839,3171.7,3171.6,0.83863362]
[1763349246987,0.4839,3171.7,3171.5,0.83963362]
[1763349247193,0.4839,3171.6,3171.5,0.83963362]
[1763349247794,1.2796497,3171.6,3171.5,0.83963362]
[1763349248002,0.9837,3171.6,3171.5,0.83963362]
[1763349248193,1.27962787,3171.6,3171.5,0.83963362]
[1763349248410,0.9837,3171.6,3171.5,0.83963362]
[1763349248819,0.9837,3171.6,3171.5,0.001]
[1763349249038,0.16622413,3171.7,3171.5,0.001]
[1763349249238,0.29589691,3171.7,3171.5,0.83963362]
[1763349250258,0.6839,3172.7,3171.6,10.10380888]
[1763349250422,0.29585938,3172.6,3172.2,0.8441247]
[1763349250752,0.79565938,3173.0,3172.4,0.8441247]
[1763349251049,0.002,3173.1,3172.4,0.8441247]
[1763349251050,0.29585938,3172.9,3172.4,0.8441247]
[1763349251362,0.29585938,3172.8,3172.4,0.8441247]
[1763349251563,0.1835,3172.8,3172.4,0.8441247]
[1763349251862,0.6833,3172.8,3172.4,0.8441247]
[1763349252149,0.1835,3172.8,3172.4,0.8441247]
[1763349252564,0.4998,3172.7,3172.3,0.8441247]
[1763349253046,0.1835,3172.8,3172.3,0.8441247]
[1763349253434,0.1835,3172.8,3172.4,0.8441247]
[1763349253635,0.1835,3172.8,3172.3,0.8441247]
[1763349253946,0.1835,3172.8,3172.2,0.8441247]
[1763349253947,0.49496298,3172.8,3172.2,0.8441247]
[1763349254152,0.29547556,3172.7,3172.2,0.8441247]
[1763349254935,0.79527556,3172.7,3172.2,0.8441247]
[1763349255185,0.49496298,3172.8,3172.2,0.466]
[1763349255335,0.29542653,3172.7,3172.1,1.0108247]
[1763349256117,0.002,3173.1,3172.6,0.4522]
[1763349256311,0.002,3173.1,3172.7,0.4959]
[1763349256739,0.2973624,3173.1,3172.7,0.4959]
[1763349256944,0.29725529,3173.1,3172.7,0.4959]
[1763349257165,0.002,3173.1,3172.6,0.8441247]
[1763349257769,0.002,3173.1,3172.3,1.11817816]
[1763349257770,0.4873,3172.7,3172.3,0.8441247]
[1763349258113,0.3435,3172.4,3172.2,0.8441247]
[1763349258348,0.3435,3172.4,3172.0,0.8441247]
[1763349258565,0.4858,3172.1,3171.9,0.8441247]
[1763349258857,0.002,3173.1,3171.5,1.67826725]
[1763349258858,0.345,3171.9,3171.5,0.001]
[1763349259071,5.30560888,3173.0,3171.5,0.001]
[1763349259072,0.4828,3173.0,3171.5,0.001]
[1763349259216,0.77799625,3172.9,3171.6,0.8441247]
[1763349259421,0.29519625,3172.8,3171.6,0.8441247]
[1763349259655,0.29519625,3172.7,3171.6,0.8441247]
[1763349259948,0.49501221,3172.6,3171.6,0.8441247]
[1763349260152,0.29519625,3172.5,3171.6,0.8441247]
[1763349260651,0.77799625,3172.5,3171.6,0.8441247]
[1763349260829,0.29519625,3172.4,3171.6,0.8441247]
[1763349261024,0.29519625,3172.4,3171.6,1.2984247]
[1763349261229,0.77799625,3173.0,3171.7,1.2984247]
[1763349261532,0.29519625,3172.9,3171.8,0.4966]
[1763349261846,0.29519625,3172.8,3171.8,0.4966]
[1763349262048,0.29519625,3172.7,3171.7,0.8441247]
[1763349262349,0.4703,3172.6,3171.7,0.8441247]
[1763349262555,0.29519625,3172.5,3171.7,0.8441247]
[1763349263253,0.29517672,3172.5,3171.7,0.8441247]
[1763349263552,0.49498584,3172.4,3171.7,0.8441247]
[1763349263922,0.49498584,3172.4,3171.7,1.3407247]
[1763349264542,0.96528584,3172.4,3171.7,0.8441247]
[1763349265132,0.49498584,3172.4,3171.8,0.8441247]
[1763349265329,0.49498584,3172.4,3171.8,0.84210231]
[1763349265528,0.49498584,3172.4,3172.3,0.6337]
[1763349265854,0.49491662,3173.0,3172.3,0.6337]
[1763349266056,0.49491662,3173.0,3172.4,1.33870231]
[1763349266351,0.002,3173.1,3172.9,0.467]
[1763349266851,0.002,3173.1,3172.6,1.33870231]
[1763349267054,0.002,3173.1,3173.0,0.467]
[1763349267245,0.002,3173.1,3172.6,0.84210231]
[1763349268454,0.002,3173.1,3172.5,0.84210231]
[1763349269037,0.49489854,3173.0,3172.5,0.84210231]
[1763349269571,0.49489854,3173.0,3172.5,1.33870231]
[1763349270648,0.49489854,3173.0,3172.5,0.84210231]
[1763349270845,0.49489854,3173.0,3172.6,0.4966]
[1763349271261,0.002,3173.1,3172.9,0.467]
[1763349271492,0.49489355,3173.0,3172.6,0.84210231]
[1763349271737,0.002,3173.1,3172.6,0.84210231]
[1763349272246,0.002,3173.1,3173.0,0.467]
[1763349272456,0.002,3173.1,3172.6,0.84210231]
[1763349273270,0.002,3173.1,3173.0,5.05557503]
[1763349273576,0.09083496,3174.3,3173.0,5.05557503]
[1763349273577,0.09083496,3174.3,3173.1,0.405504]
[1763349273739,0.09083496,3174.3,3173.6,4.18307103]
[1763349274150,0.09083496,3174.3,3173.4,0.83996079]
[1763349274345,0.09083496,3174.3,3173.6,4.18307103]
[1763349274549,4.18307103,3175.0,3173.6,5.02303182]
[1763349274873,0.4608,3173.7,3173.3,0.83996079]
[1763349275073,0.0237,3173.6,3173.1,0.1647]
[1763349275234,1.1337408,3174.7,3173.1,0.1647]
[1763349275235,0.191,3173.8,3173.1,0.1647]
[1763349275441,0.49480694,3173.7,3173.1,0.1647]
[1763349277540,0.49480694,3173.7,3172.0,2.29945967]
[1763349277541,0.0144,3173.2,3172.8,0.83996079]
[1763349277741,0.0144,3173.2,3172.6,0.83996079]
[1763349278267,0.4657,3173.4,3172.7,0.83996079]
[1763349278474,0.49480694,3173.7,3172.6,0.83996079]
[1763349278679,0.49480694,3173.7,3172.9,0.83996079]
[1763349279044,0.4703,3173.6,3172.8,0.83996079]
[1763349279238,0.49480694,3173.7,3172.8,0.83996079]
[1763349279452,0.49480694,3173.7,3172.8,1.33656079]
[1763349279850,0.49480694,3173.7,3172.9,0.4966]
[1763349280078,0.49480694,3173.7,3172.9,1.33656079]
[1763349280269,0.49480694,3173.7,3173.0,0.83996079]
[1763349280465,0.49480694,3173.7,3172.9,0.83996079]
[1763349280671,0.49480694,3173.7,3173.0,1.33656079]
[1763349281049,0.49680694,3173.7,3173.0,1.33656079]
[1763349281584,0.49680694,3173.7,3173.0,0.83996079]
[1763349281875,0.49680694,3173.7,3173.0,1.33656079]
[1763349282183,0.49680694,3173.7,3173.1,0.4966]
[1763349282343,0.49680694,3173.7,3173.6,0.467]
[1763349282754,0.51120694,3173.7,3173.1,0.83996079]
[1763349283172,0.51120694,3173.7,3173.1,0.4966]
[1763349283173,0.49680694,3173.7,3173.1,0.4966]
[1763349284192,0.49680694,3173.7,3173.1,1.33656079]
[1763349284363,0.49680694,3173.7,3173.1,0.4966]
[1763349285686,0.49680694,3173.7,3172.8,1.11994773]
[1763349285687,0.0144,3173.2,3172.8,0.83996079]
[1763349285886,0.0144,3173.2,3172.7,0.83996079]
[1763349286086,0.4703,3173.6,3172.8,0.4966]
[1763349287191,0.002,3173.7,3172.8,0.4966]
[1763349287496,0.4703,3173.6,3172.7,0.83996079]
[1763349287994,0.002,3173.7,3172.8,0.4966]
[1763349288196,0.4723,3173.7,3172.8,0.4966]
[1763349289198,0.49483479,3173.5,3172.8,0.4966]
[1763349289369,0.49483479,3173.5,3172.8,1.33656079]
[1763349289559,0.4703,3173.4,3172.8,0.83996079]
[1763349290468,0.49483479,3173.5,3172.8,0.83996079]
[1763349290795,0.49483479,3173.5,3172.8,1.33656079]
[1763349291198,0.49483479,3173.5,3172.9,0.83996079]
[1763349291399,0.49483479,3173.5,3172.9,1.33656079]
[1763349291598,0.49483479,3173.5,3172.9,0.83996079]
[1763349292170,0.49483479,3173.5,3173.0,0.83996079]
[1763349292369,0.49483479,3173.5,3173.1,0.83996079]
[1763349293500,0.96233479,3173.5,3173.1,0.83996079]
[1763349294202,0.49483479,3173.5,3173.2,0.83996079]
[1763349295488,0.49483479,3173.5,3173.3,0.83996079]
[1763349295873,0.002,3173.7,3173.3,0.83996079]
[1763349296308,0.29754996,3173.7,3173.3,0.83996079]
[1763349296613,0.4695,3173.7,3173.3,0.83996079]
[1763349299208,0.0195,3173.4,3173.3,0.83996079]
[1763349299509,0.002,3173.7,3173.3,0.83996079]
[1763349299708,0.4695,3173.7,3173.3,1.31506079]
[1763349300015,0.4695,3173.7,3173.6,1.31506079]
[1763349300016,0.002,3173.7,3173.6,1.31506079]
[1763349300403,0.002,3173.7,3173.6,1.76646079]
[1763349300610,0.002,3173.7,3173.6,1.31506079]
[1763349300909,1.1337408,3175.3,3173.6,1.31506079]
[1763349300910,0.49481523,3175.2,3173.7,0.455504]
[1763349301093,0.49472588,3174.7,3174.4,0.84230422]
[1763349301300,0.4675,3175.6,3174.5,1.1230723]
[1763349301554,0.29519261,3175.5,3174.4,0.84146794]
[1763349301803,0.29519261,3175.4,3174.4,0.84146794]
[1763349302015,0.29519261,3175.3,3174.5,0.4514]
[1763349302202,0.29519261,3175.4,3174.6,0.84146794]
[1763349302400,0.4675,3175.3,3174.6,0.84146794]
[1763349302616,0.29493722,3175.2,3174.4,0.84146794]
[1763349304196,0.49466351,3175.1,3174.4,0.4514]
[1763349304397,0.49466351,3175.1,3174.3,0.84146794]
[1763349304729,0.4675,3175.0,3174.2,0.84146794]
[1763349305085,0.49466351,3175.1,3174.1,0.93706794]
[1763349305312,0.4675,3175.0,3174.1,0.93706794]
[1763349305948,0.49466351,3175.1,3174.2,0.4514]
[1763349306350,0.96216351,3175.1,3174.1,0.93706794]
[1763349306818,0.49466351,3175.1,3174.2,0.4514]
[1763349307022,0.96216351,3175.1,3174.2,0.4514]
[1763349307386,0.96216351,3175.1,3175.0,0.880604]
[1763349307387,0.49466351,3175.1,3175.0,0.880604]
[1763349307520,0.191,3176.0,3175.0,0.4751]
[1763349307521,0.4675,3175.7,3175.0,0.4751]
[1763349307856,0.4675,3175.7,3175.1,0.6391]
[1763349307857,0.49459618,3175.7,3175.1,0.6391]
[1763349308062,0.4675,3175.8,3175.1,1.02916794]
[1763349308373,5.67262839,3177.0,3175.1,1.02916794]
[1763349308374,0.1885,3175.9,3175.1,0.1877]
[1763349308669,0.656,3175.9,3175.1,0.1877]
[1763349309017,0.0885,3175.9,3175.1,0.1877]
[1763349309217,0.0885,3175.9,3175.1,0.6391]
[1763349309667,0.0885,3175.9,3175.1,0.1877]
[1763349309852,0.0885,3175.9,3175.2,0.4514]
[1763349310222,0.4675,3177.3,3175.8,0.4751]
[1763349310421,2.26637214,3178.5,3177.1,0.6628]
[1763349310422,1.13026661,3178.3,3177.1,0.6628]
[1763349310662,0.1885,3179.7,3177.1,0.6628]
[1763349310663,0.2789,3179.4,3177.6,0.880604]
[1763349310816,0.1885,3179.7,3177.6,1.54922489]
[1763349311162,0.49408559,3178.8,3177.6,2.72886169]
[1763349311321,0.49408559,3178.8,3177.7,0.405504]
[1763349311516,0.1885,3179.7,3177.8,0.66862089]
[1763349311517,0.1885,3178.9,3177.8,0.66862089]
[1763349311739,0.49405157,3178.6,3177.6,0.3917]
[1763349311962,0.4675,3178.8,3177.6,0.3917]
[1763349312249,0.1885,3178.9,3177.5,0.3917]
[1763349312462,0.4675,3178.8,3177.1,0.1877]
[1763349312665,0.4675,3178.7,3177.1,0.1877]
[1763349312960,0.00468032,3179.0,3177.7,0.405504]
[1763349313159,0.00468032,3179.0,3178.9,0.3917]
[1763349313329,0.00468032,3179.0,3177.8,0.3917]
[1763349313520,0.1885,3178.9,3177.8,0.3917]
[1763349313715,0.00468032,3179.0,3177.8,0.3917]
[1763349314352,0.00468032,3179.0,3177.9,0.405504]
[1763349314751,0.00468032,3179.0,3178.0,0.3917]
[1763349315760,0.1885,3178.9,3178.0,0.3917]
[1763349316269,0.00468032,3179.0,3178.0,0.3917]
[1763349317442,0.195,3178.9,3178.0,0.3917]
[1763349318063,0.195,3178.9,3177.6,0.405504]
[1763349318064,0.6453,3178.9,3177.6,0.3917]
[1763349318436,0.4503,3178.8,3177.1,0.1877]
[1763349318672,0.4503,3178.8,3177.2,0.3917]
[1763349318853,0.4503,3178.8,3177.1,0.1877]
[1763349319190,0.4503,3178.7,3177.2,0.3917]
[1763349319386,0.4503,3178.8,3177.2,0.3917]
[1763349319534,0.842,3178.7,3177.2,0.3917]
[1763349319738,6.32612839,3178.7,3177.1,0.1877]
[1763349319976,2.21665364,3178.6,3177.1,0.1877]
[1763349320148,1.08291284,3178.6,3177.1,0.1877]
[1763349320352,0.4503,3178.5,3177.1,0.1877]
[1763349321176,0.195,3178.9,3177.1,0.1877]
[1763349321177,0.4503,3179.5,3178.4,0.3917]
[1763349321539,0.1897,3178.9,3178.0,0.3917]
[1763349321851,0.6813,3178.9,3176.7,0.05]
[1763349322167,0.6813,3178.9,3177.5,0.3917]
[1763349322372,0.1897,3178.9,3177.5,0.3917]
[1763349322871,0.6813,3178.9,3177.5,0.3917]
[1763349323292,0.4940109,3179.1,3177.6,0.405504]
[1763349323444,0.4940109,3179.1,3177.7,0.3917]
[1763349324046,0.4940109,3179.1,3178.1,0.405504]
[1763349324276,0.4940109,3179.1,3177.7,0.3917]
[1763349324277,0.4916,3179.4,3177.7,0.3917]
[1763349324486,0.4916,3179.4,3177.6,0.05]
[1763349324487,0.68370718,3178.9,3177.8,0.797204]
[1763349324650,0.1897,3178.9,3177.8,0.797204]
[1763349324854,0.49628032,3179.0,3177.6,0.05]
[1763349324855,0.00468032,3179.0,3177.9,0.3917]
[1763349325167,0.1897,3178.9,3177.9,0.3917]
[1763349325668,0.00468032,3179.0,3178.0,0.3917]
[1763349325981,0.1897,3178.9,3178.0,0.3917]
[1763349326480,0.00468032,3179.0,3178.1,0.405504]
[1763349326862,0.00468032,3179.0,3178.2,0.3917]
[1763349328050,0.00468032,3179.0,3178.9,0.3917]
[1763349328639,0.00468032,3179.0,3178.6,0.405504]
[1763349328974,0.00468032,3179.0,3178.9,0.3917]
[1763349329342,0.00468032,3179.0,3178.9,1.188904]
[1763349330248,0.00468032,3179.0,3178.9,1.238904]
[1763349330457,0.00468032,3179.0,3178.9,1.69951201]
[1763349330690,0.00468032,3179.0,3178.9,1.238904]
[1763349331044,0.00468032,3179.0,3178.9,1.89998578]
[1763349331740,0.00468032,3179.0,3177.9,0.46060801]
[1763349331741,0.00468032,3179.0,3178.4,0.3919]
[1763349331954,0.00468032,3179.0,3178.5,0.66111112]
[1763349332153,0.00468032,3179.0,3178.6,0.66111112]
[1763349332363,0.00468032,3179.0,3178.3,0.3919]
[1763349332567,0.00468032,3179.0,3178.9,0.3919]
[1763349332948,0.00468032,3179.0,3178.9,1.44519015]
[1763349333169,0.00468032,3179.0,3178.9,0.3919]
[1763349333367,0.00468032,3179.0,3178.9,0.7838]
[1763349333568,0.00468032,3179.0,3178.9,1.44503682]
[1763349333768,0.00468032,3179.0,3178.9,1.85054082]
[1763349333969,0.00468032,3179.0,3178.9,2.98428162]
[1763349334171,0.00468032,3179.0,3178.9,3.03428162]
[1763349334692,0.1897,3182.1,3180.8,0.455504]
[1763349334989,0.6813,3181.7,3180.7,0.1021]
[1763349335281,0.1897,3181.7,3180.8,1.05241013]
[1763349335482,0.1897,3181.7,3180.7,0.494]
[1763349335483,0.1897,3181.7,3180.7,0.1021]
[1763349335655,0.1897,3181.7,3180.2,0.92780748]
[1763349335656,0.28053496,3180.9,3180.2,0.92780748]
[1763349335855,0.28053496,3180.9,3180.2,0.1021]
[1763349335856,0.09083496,3180.9,3180.2,0.1021]
[1763349336057,0.28053496,3180.9,3180.3,0.66094]
[1763349336258,0.09083496,3180.9,3180.3,0.66094]
[1763349336448,0.09083496,3180.9,3180.4,0.66094]
[1763349336651,0.09083496,3180.9,3180.1,0.797404]
[1763349336902,0.09083496,3180.9,3180.8,0.797404]
[1763349337100,0.09083496,3180.9,3180.8,1.45879444]
[1763349337395,0.02229076,3181.4,3181.3,0.405504]
[1763349337558,0.02229076,3181.4,3181.3,0.706504]
[1763349337887,0.02229076,3181.4,3181.3,2.80263524]
[1763349338097,0.02229076,3181.4,3181.3,8.53803226]
[1763349338485,0.02229076,3181.4,3181.3,2.46894742]
[1763349338654,0.02229076,3181.4,3181.3,2.76994742]
[1763349339257,0.02229076,3181.4,3181.3,3.90368822]
[1763349339456,0.02229076,3181.4,3181.3,0.66139044]
[1763349340272,0.49289076,3181.4,3181.3,0.66139044]
[1763349340490,0.98449076,3181.4,3180.7,0.0969]
[1763349340663,0.98449076,3181.4,3180.8,0.66173164]
[1763349340865,0.4916,3181.3,3180.3,0.8258689]
[1763349341063,0.6603,3180.8,3180.4,0.66202948]
[1763349341264,0.6603,3180.8,3180.1,0.05]
[1763349341467,0.4916,3180.7,3179.8,0.05]
[1763349341678,0.4916,3180.7,3179.9,0.66195011]
[1763349341991,0.4916,3180.7,3180.0,0.66195011]
[1763349342159,0.4916,3180.7,3179.6,0.1021]
[1763349342160,0.4916,3180.7,3179.6,0.9279689]
[1763349342357,0.4916,3180.7,3179.7,0.66212252]
[1763349343100,0.1897,3180.8,3179.8,0.301]
[1763349343302,0.02229076,3181.4,3180.7,0.301]
[1763349343477,0.02229076,3181.4,3180.2,1.1337408]
[1763349343478,0.4916,3183.0,3181.3,0.552404]
[1763349343683,0.4916,3183.0,3181.7,0.405504]
[1763349343912,0.68322735,3183.2,3181.9,0.405504]
[1763349344079,0.68322735,3183.2,3181.4,0.2788]
[1763349344080,0.71271,3182.9,3181.6,0.82603707]
[1763349344276,0.71271,3182.9,3181.8,0.405504]
[1763349344587,0.71271,3182.9,3181.4,0.82603707]
[1763349344588,0.4916,3182.8,3181.9,0.66018768]
[1763349344791,0.4916,3182.8,3181.6,0.405504]
[1763349344978,0.4916,3182.8,3181.2,0.82603707]
[1763349345182,0.4916,3182.8,3181.4,0.405504]
[1763349345432,0.4916,3182.8,3181.2,1.4125408]
[1763349345433,0.4916,3182.8,3181.6,0.405504]
[1763349345595,0.4916,3182.8,3181.4,0.405504]
[1763349345920,0.4916,3182.8,3181.2,0.2788]
[1763349345921,0.4916,3182.8,3181.2,0.405504]
[1763349346078,0.4916,3182.8,3181.3,0.65989494]
[1763349346279,0.4916,3182.8,3181.4,0.05]
[1763349346509,0.4916,3182.8,3181.5,1.1337408]
[1763349346697,0.4916,3182.8,3181.6,1.06496067]
[1763349346885,0.4916,3182.8,3181.7,0.65945667]
[1763349347087,0.22111,3182.9,3182.0,0.405504]
[1763349347287,0.71271,3182.9,3181.6,0.684304]
[1763349347494,0.71271,3182.9,3181.8,0.405504]
[1763349347691,0.03141,3182.9,3182.0,0.405504]